bitfinex/quotes_SOLUSD_20250204
["timestamp","ask_amount","ask_price","bid_price","bid_amount"]
[1738707745229,0.12549,203.98,203.89,37.63234838]
[1738707745401,0.12549,203.96,203.87,37.63234838]
[1738707745601,37.75783838,203.91,203.81,37.63234838]
[1738707746003,0.12549,203.89,203.79,37.63234838]
[1738707746202,37.63234838,203.85,203.75,37.63234838]
[1738707746522,0.12549,203.82,203.73,37.63234838]
[1738707746722,0.12549,203.8,203.69,37.63234838]
[1738707746923,0.12549,203.8,203.71,37.63234838]
[1738707747606,13.78831853,203.8,203.71,37.63234838]
[1738707747807,13.78831853,203.78,203.69,37.63234838]
[1738707748125,0.12549,203.78,203.71,37.63234838]
[1738707748742,0.25098,203.78,203.71,37.63234838]
[1738707748920,0.22560646,203.72,203.71,37.63234838]
[1738707749324,0.22560646,203.72,203.69,37.63234838]
[1738707750033,0.25098,203.71,203.65,37.63234838]
[1738707750234,0.25098,203.71,203.63,37.63234838]
[1738707750620,0.35109646,203.72,203.63,37.63234838]
[1738707750930,37.98344484,203.72,203.69,312.0]
[1738707751639,0.35109646,203.72,203.67,37.63234838]
[1738707752240,0.22560646,203.72,203.69,37.63234838]
[1738707753548,0.22560646,203.72,203.71,37.63234838]
[1738707753950,0.10011646,203.72,203.71,37.63234838]
[1738707754650,0.10011646,203.72,203.71,349.63234838]
[1738707755745,0.22560646,203.72,203.71,349.63234838]
[1738707756048,0.22560646,203.72,203.71,312.0]
[1738707756432,0.10011646,203.72,203.71,312.0]
[1738707757046,0.22560646,203.72,203.71,312.0]
[1738707758151,71.39529337,203.72,203.71,312.0]
[1738707758454,0.37647,203.71,203.67,0.063]
[1738707758656,0.12549,203.69,203.67,0.063]
[1738707759456,0.12549,203.7,203.67,0.063]
[1738707759950,0.10011646,203.72,203.67,0.063]
[1738707760139,0.10011646,203.72,203.67,37.69534838]
[1738707760838,0.22560646,203.72,203.67,0.063]
[1738707761347,0.22560646,203.72,203.71,312.0]
[1738707762451,0.12549,203.68,203.67,0.063]
[1738707763863,0.22560646,203.72,203.67,0.063]
[1738707764261,51.26980337,203.72,203.67,0.063]
[1738707765330,51.26980337,203.72,203.7,312.0]
[1738707766847,51.26980337,203.72,203.67,0.063]
[1738707768542,0.22560646,203.72,203.67,0.063]
[1738707768947,0.10408146,203.68,203.67,0.063]
[1738707769762,0.10408146,203.68,203.67,312.063]
[1738707771647,58.11289984,203.68,203.67,0.063]
[1738707771851,71.52474837,203.68,203.67,0.063]
[1738707775069,152.32474837,203.68,203.67,0.063]
[1738707779668,152.32474837,203.68,203.67,0.0001]
[1738707780551,0.12549,203.65,203.62,0.063]
[1738707780767,51.42066691,203.63,203.62,0.063]
[1738707781068,51.42066691,203.63,203.52,37.63234838]
[1738707781274,0.12549,203.59,203.5,37.63234838]
[1738707782443,0.12549,203.59,203.52,37.63234838]
[1738707782648,37.75783838,203.62,203.52,37.63234838]
[1738707783351,0.12549,203.61,203.52,37.63234838]
[1738707783663,0.12549,203.61,203.6,312.0]
[1738707784360,13.91380853,203.61,203.6,312.0]
[1738707784551,0.12549,203.59,203.48,37.63234838]
[1738707784753,0.25098,203.56,203.48,37.63234838]
[1738707785561,0.25098,203.56,203.46,0.063]
[1738707785562,37.88332838,203.52,203.46,0.063]
[1738707787578,37.88332838,203.52,203.51,312.063]
[1738707788955,37.97399717,203.52,203.51,312.063]
[1738707789657,0.34164879,203.52,203.51,312.063]
[1738707789969,0.34164879,203.52,203.51,0.063]
[1738707792096,0.37647,203.51,203.46,0.063]
[1738707792388,0.12549,203.49,203.46,0.063]
[1738707792581,0.37647,203.49,203.46,0.063]
[1738707792875,23.30590133,203.49,203.48,312.0]
[1738707793068,13.78831853,203.5,203.48,312.0]
[1738707793267,13.78831853,203.5,203.46,0.063]
[1738707794062,0.09066879,203.52,203.46,0.063]
[1738707794474,0.09066879,203.52,203.47,23.18041133]
[1738707795587,0.21615879,203.52,203.47,23.18041133]
[1738707795791,0.21615879,203.52,203.49,23.18041133]
[1738707795958,0.21615879,203.52,203.51,23.18041133]
[1738707796362,0.09066879,203.52,203.51,335.18041133]
[1738707796580,0.09066879,203.52,203.51,349.62892839]
[1738707796982,0.09066879,203.52,203.51,354.54262839]
[1738707800615,0.09066879,203.52,203.51,349.62892839]
[1738707800909,0.09066879,203.52,203.51,312.0]
[1738707800910,0.21615879,203.52,203.51,312.0]
[1738707801890,0.09066879,203.52,203.51,312.0]
[1738707802078,0.09066879,203.52,203.51,349.62892839]
[1738707803314,0.09066879,203.52,203.51,354.54262839]
[1738707805500,0.09066879,203.52,203.51,354.60562839]
[1738707805996,0.12066879,203.52,203.51,316.9767]
[1738707807002,0.12066879,203.52,203.51,354.60562839]
[1738707807218,0.06079352,203.54,203.53,20.25098]
[1738707807381,7.56e-06,203.55,203.54,13.66282853]
[1738707807581,2.844e-05,203.56,203.55,33.66282853]
[1738707807790,2.844e-05,203.56,203.55,71.29175692]
[1738707807992,2.844e-05,203.56,203.55,72.02838519]
[1738707808824,2.844e-05,203.56,203.55,62.54162839]
[1738707809045,0.09514155,203.56,203.53,37.62892839]
[1738707809727,0.09511311,203.56,203.53,37.62892839]
[1738707810229,0.09511311,203.56,203.52,6.5186]
[1738707810405,0.09511311,203.56,203.53,312.0]
[1738707811399,0.09511311,203.56,203.53,316.9132]
[1738707812322,0.09511311,203.56,203.53,4.9132]
[1738707812620,0.09511311,203.56,203.52,4.9135]
[1738707813310,0.09511311,203.56,203.55,37.62892839]
[1738707813724,0.22060311,203.56,203.53,37.62892839]
[1738707814925,0.09511311,203.56,203.55,37.62892839]
[1738707815129,0.09511311,203.56,203.55,37.87990839]
[1738707815316,0.09511311,203.56,203.55,349.87990839]
[1738707816436,0.09511311,203.56,203.55,349.62892839]
[1738707816741,0.09511311,203.56,203.55,335.14508091]
[1738707817730,0.22060311,203.56,203.55,312.0]
[1738707818309,0.22060311,203.56,203.51,23.20808091]
[1738707818515,0.22060311,203.56,203.53,0.063]
[1738707818707,0.25060311,203.56,203.53,0.063]
[1738707819519,0.12549,203.54,203.53,0.063]
[1738707821716,0.12511311,203.56,203.53,0.063]
[1738707825118,0.12511311,203.56,203.53,312.063]
[1738707826839,20.12549,203.52,203.51,0.063]
[1738707827026,20.12549,203.52,203.46,0.063]
[1738707827027,0.12549,203.49,203.46,0.063]
[1738707828933,0.21652589,203.47,203.46,0.063]
[1738707829920,0.21652589,203.47,203.46,312.063]
[1738707830533,0.21652589,203.47,203.46,0.063]
[1738707833446,0.21652589,203.47,203.46,312.063]
[1738707834444,0.09103589,203.47,203.46,312.063]
[1738707837949,0.09103589,203.47,203.46,325.72582853]
[1738707838130,0.01823631,203.5,203.49,0.25098]
[1738707838332,0.01823631,203.5,203.49,37.54471587]
[1738707840552,0.02,203.51,203.5,13.41184853]
[1738707840725,0.03,203.62,203.54,13.66282853]
[1738707840928,0.03,203.62,203.55,23.39606091]
[1738707841129,0.03,203.62,203.55,36.80790944]
[1738707841348,0.03,203.62,203.55,349.54450682]
[1738707841548,0.03,203.62,203.55,348.80790944]
[1738707843663,0.12549,203.61,203.55,335.14508091]
[1738707846732,0.12549,203.61,203.55,23.14508091]
[1738707847458,0.12549,203.61,203.5,0.98775319]
[1738707847459,0.12549,203.61,203.53,23.14508091]
[1738707848358,0.12549,203.61,203.55,20.0]
[1738707848532,23.14508091,203.6,203.51,23.14508091]
[1738707849063,0.09483464,203.52,203.51,23.14508091]
[1738707849443,0.09483464,203.52,203.51,23.39606091]
[1738707849784,0.10032107,203.61,203.55,13.66282853]
[1738707849942,0.10032107,203.61,203.57,36.80790944]
[1738707850759,0.10032107,203.61,203.57,28.11815719]
[1738707851864,0.10032107,203.61,203.57,29.34520658]
[1738707852669,0.10032107,203.61,203.57,38.01743759]
[1738707852960,0.10032107,203.61,203.57,39.01743759]
[1738707853374,0.10032107,203.61,203.57,351.01743759]
[1738707853562,0.10032107,203.61,203.58,14.66282853]
[1738707853766,0.10032107,203.61,203.58,15.39923443]
[1738707854886,0.10032107,203.61,203.58,14.39923443]
[1738707855650,0.10032107,203.61,203.58,0.8618959]
[1738707856157,0.10032107,203.61,203.58,0.9873859]
[1738707856358,0.13404623,203.59,203.58,0.9873859]
[1738707856759,0.13404623,203.59,203.58,312.0]
[1738707861063,0.25953623,203.59,203.58,312.0]
[1738707863054,43.31014443,203.59,203.58,312.0]
[1738707863252,43.31014443,203.59,203.54,0.063]
[1738707863464,0.12549,203.58,203.54,0.063]
[1738707864690,13.53733853,203.58,203.54,0.063]
[1738707866255,0.12549,203.58,203.57,312.0]
[1738707868483,0.13404623,203.59,203.57,312.0]
[1738707868686,0.13404623,203.59,203.54,0.063]
[1738707868979,0.09887903,203.58,203.54,0.063]
[1738707871659,0.09887903,203.58,203.57,312.0]
[1738707875066,0.09887903,203.58,203.54,0.063]
[1738707876863,0.09887903,203.58,203.56,14.46987307]
[1738707877987,0.09887903,203.58,203.57,312.0]
[1738707879986,0.12887903,203.58,203.57,312.0]
[1738707880860,0.12887903,203.58,203.57,326.66282853]
[1738707881186,0.09221891,203.61,203.6,33.41184853]
[1738707881363,0.11783718,203.62,203.61,0.25098]
[1738707882082,0.11783718,203.62,203.61,1.25098]
[1738707882288,0.03,203.72,203.62,13.41184853]
[1738707882460,0.03,203.72,203.62,28.61802653]
[1738707882773,0.03,203.72,203.63,14.66282853]
[1738707882976,0.03,203.72,203.66,34.66282853]
[1738707883170,0.03,203.72,203.66,49.86881155]
[1738707883569,0.03,203.72,203.66,48.86881155]
[1738707884486,0.03,203.72,203.71,0.25098]
[1738707884686,0.03,203.72,203.71,15.45687965]
[1738707885387,0.03,203.77,203.71,28.86872818]
[1738707885569,0.03,203.77,203.76,14.46987307]
[1738707886368,0.03,203.77,203.76,28.1327016]
[1738707887060,14.46987307,203.9,203.79,20.0]
[1738707887265,64.95761278,203.95,203.82,14.46987307]
[1738707887266,14.46987307,203.94,203.82,14.46987307]
[1738707887591,63.95761278,203.95,203.82,28.86828788]
[1738707887905,63.95761278,203.95,203.82,340.86828788]
[1738707888202,14.46987307,203.92,203.82,326.46987307]
[1738707888380,14.46987307,203.88,203.82,312.0]
[1738707888569,14.46987307,203.84,203.82,312.0]
[1738707888777,0.12549,203.81,203.72,14.46987307]
[1738707889079,14.59536307,203.81,203.72,14.46987307]
[1738707890783,0.12549,203.81,203.74,14.46987307]
[1738707891091,0.12062252,203.83,203.79,14.46987307]
[1738707891264,0.12062252,203.83,203.81,14.46987307]
[1738707891671,0.12062252,203.83,203.82,312.0]
[1738707894616,0.12062252,203.83,203.82,335.07481609]
[1738707900396,0.09354409,203.85,203.83,0.25098]
[1738707900573,0.09176376,203.89,203.87,20.25098]
[1738707900780,0.09176376,203.89,203.88,0.25098]
[1738707901396,0.09176376,203.89,203.87,43.8102607]
[1738707901589,0.09176376,203.89,203.88,0.25098]
[1738707901794,0.10626828,203.91,203.89,13.66282853]
[1738707902098,0.10626828,203.91,203.89,37.47302546]
[1738707902324,0.10626828,203.91,203.89,24.06117693]
[1738707902485,0.10626828,203.91,203.89,23.07481609]
[1738707902678,0.10626828,203.91,203.87,23.07481609]
[1738707903096,0.21557806,203.9,203.85,23.07481609]
[1738707903301,0.21557806,203.9,203.82,23.07481609]
[1738707903486,0.21557806,203.9,203.87,312.0]
[1738707903690,23.29039415,203.9,203.87,312.0]
[1738707904017,23.29039415,203.9,203.79,0.063]
[1738707904018,23.32579609,203.88,203.79,0.063]
[1738707904906,23.32579609,203.88,203.8,0.063]
[1738707906107,0.25098,203.86,203.8,0.063]
[1738707906308,23.32579609,203.86,203.8,0.063]
[1738707906896,23.32579609,203.86,203.84,312.0]
[1738707908910,0.09264855,203.85,203.84,312.0]
[1738707910804,0.09264855,203.85,203.8,0.063]
[1738707910985,0.21813855,203.85,203.8,0.063]
[1738707913718,0.21813855,203.85,203.84,312.0]
[1738707913914,0.12549,203.84,203.8,0.063]
[1738707914226,0.12549,203.81,203.8,0.063]
[1738707914709,0.12549,203.82,203.8,0.063]
[1738707915417,0.09264855,203.85,203.8,0.063]
[1738707915598,0.09264855,203.85,203.8,14.50202327]
[1738707916433,0.09264855,203.85,203.8,0.063]
[1738707917005,0.09264855,203.85,203.84,312.0]
[1738707917206,0.09264855,203.85,203.84,326.43902327]
[1738707918334,0.09264855,203.85,203.84,326.69000327]
[1738707918925,0.09264855,203.85,203.84,340.1018518]
[1738707919234,0.08915082,203.86,203.85,0.25098]
[1738707919416,0.08915082,203.86,203.85,0.98641809]
[1738707920723,0.08915082,203.86,203.85,24.05466118]
[1738707920909,0.08915082,203.86,203.85,23.80368118]
[1738707921222,0.08915082,203.86,203.85,24.05466118]
[1738707921593,0.08915082,203.86,203.85,23.92917118]
[1738707921799,0.08915082,203.86,203.85,23.06824309]
[1738707922329,0.08915082,203.86,203.85,312.0]
[1738707922711,0.08915082,203.86,203.85,335.06824309]
[1738707926605,0.08915082,203.86,203.85,335.31922309]
[1738707926803,0.08915082,203.86,203.85,348.73107162]
[1738707928931,0.21403921,203.89,203.85,336.06824309]
[1738707929129,0.21403921,203.89,203.88,46.13648618]
[1738707929310,0.21403921,203.89,203.88,60.53466029]
[1738707929512,0.21403921,203.89,203.88,37.4664172]
[1738707929816,0.13031819,203.89,203.88,37.4664172]
[1738707930121,0.13031819,203.89,203.88,24.05456867]
[1738707930319,0.13031819,203.89,203.88,23.31922309]
[1738707930508,0.13031819,203.89,203.88,23.06824309]
[1738707932033,0.13031819,203.89,203.88,335.06824309]
[1738707932639,0.13031819,203.89,203.88,312.0]
[1738707933016,0.38129819,203.89,203.88,312.0]
[1738707941434,0.38129819,203.89,203.88,312.063]
[1738707942645,21.27414711,203.89,203.88,312.063]
[1738707942836,34.68599564,203.89,203.88,0.063]
[1738707943541,34.93697564,203.89,203.88,0.063]
[1738707944047,34.68599564,203.89,203.88,0.063]
[1738707944437,35.93697564,203.89,203.88,0.063]
[1738707944950,34.93697564,203.89,203.88,0.063]
[1738707945257,35.93697564,203.89,203.88,0.063]
[1738707945443,36.93697564,203.89,203.88,0.063]
[1738707945644,0.13031819,203.89,203.88,0.063]
[1738707945956,0.13031819,203.89,203.88,326.49084892]
[1738707946252,0.13031819,203.89,203.88,326.61633892]
[1738707946759,0.13031819,203.89,203.88,335.250376]
[1738707948758,0.13031819,203.89,203.88,335.124886]
[1738707949052,0.23217758,203.89,203.88,335.124886]
[1738707949757,0.13185939,203.89,203.88,335.250376]
[1738707949951,0.13185939,203.89,203.88,335.124886]
[1738707950335,0.13185939,203.89,203.88,335.250376]
[1738707950660,0.13185939,203.89,203.88,335.124886]
[1738707953433,0.03185939,203.89,203.88,335.250376]
[1738707954064,0.06185939,203.89,203.88,335.250376]
[1738707954665,0.06185939,203.89,203.88,335.124886]
[1738707956855,0.06185939,203.89,203.88,312.063]
[1738707958141,0.05953021,203.9,203.89,0.12549]
[1738707958460,0.09724087,203.93,203.92,33.66282853]
[1738707958666,0.09724087,203.93,203.92,56.72471453]
[1738707958968,0.09724087,203.93,203.92,57.45990301]
[1738707960272,0.09724087,203.93,203.92,62.36370301]
[1738707960459,0.09724087,203.93,203.92,48.82636448]
[1738707960758,0.09724087,203.93,203.92,48.70087448]
[1738707960962,0.09724087,203.93,203.92,47.965686]
[1738707961169,0.09724087,203.93,203.92,48.091176]
[1738707961345,0.09724087,203.93,203.92,359.965686]
[1738707961743,0.22273087,203.93,203.92,312.0]
[1738707963276,13.6345794,203.93,203.92,312.0]
[1738707963585,13.53733853,203.89,203.88,0.063]
[1738707963746,36.59922453,203.89,203.88,0.063]
[1738707964578,37.59922453,203.89,203.88,0.063]
[1738707965763,38.85020453,203.89,203.88,0.063]
[1738707966146,15.78831853,203.89,203.88,0.063]
[1738707966349,15.53733853,203.89,203.88,0.063]
[1738707966555,14.53733853,203.89,203.88,0.063]
[1738707966974,13.53733853,203.89,203.84,312.063]
[1738707967177,13.53733853,203.89,203.84,0.063]
[1738707968965,0.23173483,203.85,203.84,0.063]
[1738707970164,0.23173483,203.85,203.84,312.063]
[1738707973380,19.91168336,203.85,203.84,311.1431]
[1738707973676,13.53733853,203.82,203.8,0.063]
[1738707973883,36.59922453,203.81,203.8,0.063]
[1738707974474,37.85020453,203.81,203.8,0.063]
[1738707974668,29.23367543,203.81,203.8,0.063]
[1738707974977,14.78831853,203.8,203.79,0.0001]
[1738707975181,29.23367543,203.8,203.79,0.0001]
[1738707975384,13.41184853,203.75,203.67,0.063]
[1738707975695,14.5708469,203.71,203.67,0.063]
[1738707975857,13.53733853,203.68,203.67,0.063]
[1738707976452,14.78831853,203.68,203.67,0.063]
[1738707976654,37.92989682,203.68,203.67,0.063]
[1738707976878,0.12549,203.64,203.63,0.063]
[1738707977079,37.05538682,203.64,203.63,0.063]
[1738707977782,43.38348682,203.64,203.63,0.063]
[1738707978087,14.91380853,203.6,203.59,0.063]
[1738707978277,23.14157829,203.66,203.59,0.063]
[1738707978583,0.25098,203.65,203.59,0.063]
[1738707979281,0.25098,203.62,203.59,0.063]
[1738707980177,0.25098,203.62,203.55,6.21783856]
[1738707980374,0.25098,203.65,203.55,6.21783856]
[1738707980581,0.25098,203.65,203.57,23.14157829]
[1738707980771,0.12549,203.65,203.57,23.14157829]
[1738707980971,0.12549,203.67,203.63,312.0]
[1738707981681,0.12549,203.64,203.57,23.14157829]
[1738707981858,0.12549,203.63,203.55,23.14157829]
[1738707982062,0.12549,203.63,203.54,0.063]
[1738707982876,0.12549,203.63,203.55,23.14157829]
[1738707984580,0.12549,203.63,203.6,312.0]
[1738707984903,80.8,203.62,203.6,312.0]
[1738707987489,118.47891682,203.61,203.54,0.063]
[1738707987692,36.67891682,203.59,203.54,0.063]
[1738707988993,0.23101131,203.55,203.54,0.063]
[1738707990308,0.23101131,203.55,203.54,312.063]
[1738707991079,0.10552131,203.55,203.53,23.14157829]
[1738707991587,0.10552131,203.55,203.51,28.05527829]
[1738707992182,0.10552131,203.55,203.54,312.0]
[1738707992896,0.10552131,203.55,203.54,316.913]
[1738707993278,0.10552131,203.55,203.54,317.16398]
[1738707993480,0.10552131,203.55,203.54,312.0]
[1738707994783,20.23101131,203.55,203.54,312.0]
[1738707994980,0.23101131,203.55,203.54,312.0]
[1738707995182,20.23101131,203.55,203.54,312.0]
[1738707995498,0.12549,203.54,203.46,0.063]
[1738707996372,20.10552131,203.55,203.47,4.9147]
[1738707996590,0.10552131,203.55,203.47,4.9147]
[1738707996787,0.23101131,203.55,203.46,0.063]
[1738707996989,0.10552131,203.55,203.46,0.063]
[1738707997385,0.23101131,203.55,203.46,0.31398]
[1738707997897,0.23101131,203.55,203.46,0.063]
[1738707998500,0.23101131,203.55,203.54,312.0]
[1738707999697,0.23101131,203.55,203.46,0.063]
[1738708000002,95.27822954,203.54,203.46,0.063]
[1738708000514,95.27822954,203.54,203.46,4.9779]
[1738708002115,80.8,203.54,203.46,19.45612954]
[1738708002617,80.92549,203.54,203.53,312.0]
[1738708003087,0.12549,203.53,203.48,4.9144]
[1738708004253,0.12549,203.53,203.46,14.54122954]
[1738708004413,0.12549,203.53,203.47,4.9147]
[1738708006010,0.12549,203.53,203.52,312.0]
[1738708006848,0.12549,203.53,203.46,0.063]
[1738708008235,0.12549,203.53,203.46,4.9777]
[1738708009022,0.1065303,203.47,203.46,4.9777]
[1738708010015,0.1065303,203.47,203.46,331.45592954]
[1738708011033,0.1065303,203.47,203.46,331.70690954]
[1738708011211,0.10664426,203.48,203.46,346.11875807]
[1738708011419,7.456e-05,203.48,203.47,14.39965523]
[1738708011616,7.456e-05,203.48,203.46,17.80028655]
[1738708011823,7.456e-05,203.48,203.46,15.47822954]
[1738708012031,7.456e-05,203.48,203.47,0.73682966]
[1738708013240,7.456e-05,203.48,203.47,5.65152966]
[1738708014447,7.456e-05,203.48,203.47,317.90250966]
[1738708014654,7.456e-05,203.48,203.47,317.16568]
[1738708016249,0.10426075,203.49,203.48,34.05545807]
[1738708016250,3.531e-05,203.49,203.48,34.05545807]
[1738708016422,2.144e-05,203.5,203.48,49.27042855]
[1738708016621,2.144e-05,203.5,203.48,34.79219901]
[1738708016818,2.144e-05,203.5,203.48,20.38035048]
[1738708019376,2.144e-05,203.5,203.49,317.03969]
[1738708020547,2.144e-05,203.5,203.49,316.9142]
[1738708022685,2.144e-05,203.5,203.49,312.0]
[1738708026173,0.12551144,203.5,203.46,0.063]
[1738708026343,13.41184853,203.49,203.46,0.063]
[1738708026656,13.53733853,203.47,203.46,0.063]
[1738708026843,0.12549,203.47,203.46,0.063]
[1738708027254,13.66282853,203.47,203.46,0.063]
[1738708027451,13.66282853,203.47,203.33,0.063]
[1738708027452,20.0,203.43,203.33,0.063]
[1738708027652,28.14105807,203.42,203.33,0.063]
[1738708027858,28.26654807,203.42,203.33,0.063]
[1738708028059,20.25098,203.38,203.33,0.063]
[1738708028259,13.53733853,203.37,203.33,0.063]
[1738708028565,23.40241853,203.37,203.33,0.063]
[1738708028756,23.40241853,203.37,203.36,0.0001]
[1738708028964,13.78831853,203.3,203.27,0.063]
[1738708029266,29.26654807,203.28,203.27,0.063]
[1738708029466,35.36104807,203.28,203.27,0.063]
[1738708030069,35.47019552,203.28,203.27,0.063]
[1738708030261,34.23555807,203.28,203.27,0.063]
[1738708030772,19.63183853,203.28,203.27,0.063]
[1738708031071,14.47822954,203.32,203.27,0.063]
[1738708031268,6.0105,203.33,203.27,0.063]
[1738708031646,13.66282853,203.32,203.27,0.063]
[1738708032271,13.66282853,203.32,203.31,312.0]
[1738708032954,13.78831853,203.32,203.31,312.0]
[1738708033776,33.66282853,203.29,203.27,0.063]
[1738708033978,56.8800094,203.29,203.27,0.063]
[1738708035873,29.22768087,203.33,203.27,0.063]
[1738708036176,13.53733853,203.32,203.31,0.063]
[1738708036765,13.53733853,203.32,203.31,312.063]
[1738708038476,23.21718087,203.35,203.31,312.063]
[1738708038686,13.53733853,203.34,203.31,0.063]
[1738708038858,0.12549,203.33,203.31,0.063]
[1738708039372,104.10942083,203.37,203.27,23.28018087]
[1738708040090,13.66282853,203.36,203.27,23.28018087]
[1738708040592,13.66282853,203.36,203.27,0.063]
[1738708040593,0.12549,203.33,203.27,0.063]
[1738708041582,0.12549,203.34,203.32,312.0]
[1738708041999,0.12549,203.33,203.32,312.0]
[1738708042293,13.66282853,203.32,203.27,0.063]
[1738708043194,20.0,203.29,203.27,0.063]
[1738708043361,13.78831853,203.28,203.25,0.063]
[1738708043564,0.37647,203.25,203.17,23.21718087]
[1738708043783,13.41184853,203.24,203.17,23.21718087]
[1738708044096,36.6290294,203.24,203.15,23.21718087]
[1738708045309,36.8800094,203.24,203.23,312.0]
[1738708045693,37.0054994,203.24,203.23,312.0]
[1738708046809,23.34267087,203.24,203.23,312.0]
[1738708047209,20.12549,203.24,203.23,312.0]
[1738708047887,20.12549,203.24,203.23,312.063]
[1738708048112,23.21718087,203.3,203.23,0.063]
[1738708048407,13.66282853,203.29,203.22,23.21718087]
[1738708048999,0.10047922,203.23,203.22,23.21718087]
[1738708049412,0.10047922,203.23,203.22,28.13788087]
[1738708050824,0.10047922,203.23,203.18,4.9217]
[1738708051018,0.10047922,203.23,203.2,23.21718087]
[1738708051218,0.10047922,203.23,203.22,312.0]
[1738708051583,0.22596922,203.23,203.22,312.0]
[1738708052202,0.10047922,203.23,203.22,312.0]
[1738708059906,0.10047922,203.23,203.22,312.063]
[1738708061216,0.10047922,203.23,203.22,0.063]
[1738708062218,0.10047922,203.23,203.22,312.063]
[1738708066623,0.10047922,203.23,203.22,0.063]
[1738708066822,0.10047922,203.23,203.11,0.15]
[1738708066823,20.0,203.21,203.11,0.15]
[1738708067117,14.51678281,203.18,203.11,0.15]
[1738708067299,1.0,203.19,203.11,0.15]
[1738708068522,13.78831853,203.18,203.11,0.15]
[1738708068891,0.09379218,203.12,203.11,0.15]
[1738708069696,0.09379218,203.12,203.11,312.15]
[1738708072423,0.09379218,203.12,203.11,312.213]
[1738708076423,0.09379218,203.12,203.11,317.1364]
[1738708080136,0.09379218,203.12,203.11,332.31863853]
[1738708080436,3.4e-05,203.13,203.12,14.91380853]
[1738708080612,3.4e-05,203.13,203.12,30.0430982]
[1738708081621,0.1016591,203.14,203.13,4.9229]
[1738708082838,0.1016591,203.14,203.12,15.25477967]
[1738708083135,0.1016591,203.14,203.11,0.213]
[1738708083531,0.1016591,203.14,203.13,312.0]
[1738708084634,0.1016591,203.14,203.11,0.213]
[1738708087537,0.1016591,203.14,203.13,312.0]
[1738708089016,0.20744696,203.14,203.13,312.0]
[1738708089830,0.10578786,203.14,203.13,312.0]
[1738708093136,0.12549,203.17,203.13,312.0]
[1738708093320,0.12549,203.17,203.11,0.213]
[1738708093321,0.25098,203.17,203.11,0.213]
[1738708094641,0.12549,203.15,203.11,0.213]
[1738708096047,2.92834142,203.14,203.11,0.213]
[1738708096241,2.92834142,203.14,203.13,312.0]
[1738708100843,2.92834142,203.16,203.13,316.9229]
[1738708101245,2.92834142,203.16,203.13,4.9229]
[1738708101550,2.92834142,203.16,203.11,0.213]
[1738708101846,0.12549,203.15,203.11,0.213]
[1738708102647,3.05383142,203.15,203.11,0.213]
[1738708104142,0.12549,203.15,203.13,312.0]
[1738708106155,2.93766607,203.14,203.13,312.0]
[1738708108347,2.93766607,203.14,203.13,312.063]
[1738708108951,3.02640635,203.14,203.13,312.063]
[1738708109140,3.02640635,203.14,203.13,0.063]
[1738708112165,3.02640635,203.14,203.13,312.063]
[1738708116868,3.02640635,203.14,203.13,316.9859]
[1738708118369,0.08874028,203.14,203.13,316.9859]
[1738708119767,0.08874028,203.14,203.13,333.09133853]
[1738708120146,0.08874028,203.14,203.13,333.21682853]
[1738708122581,0.08874028,203.14,203.13,318.554]
[1738708125476,0.10163746,203.15,203.14,5.04819]
[1738708125660,0.10163746,203.15,203.14,28.49804433]
[1738708126875,0.10163746,203.15,203.14,14.9607058]
[1738708128595,0.10163746,203.15,203.14,326.9607058]
[1738708128767,0.10163746,203.15,203.14,326.22269043]
[1738708128961,0.20230702,203.15,203.14,326.22269043]
[1738708129893,0.10066956,203.15,203.14,326.22269043]
[1738708130494,0.10066956,203.15,203.14,312.0]
[1738708130867,3.04189744,203.15,203.14,312.0]
[1738708136564,3.04189744,203.15,203.13,0.063]
[1738708137188,3.04189744,203.15,203.14,20.0]
[1738708137882,3.04189744,203.15,203.14,29.29999043]
[1738708138382,3.04189744,203.15,203.14,34.22269043]
[1738708138588,0.10066956,203.15,203.14,34.22269043]
[1738708138783,0.10066956,203.15,203.14,34.34818043]
[1738708139465,0.10066956,203.15,203.14,346.34818043]